Cogmind - Beta 12 @@@ ROGUE MODE // 2023.03.04 @ 22:42:47 Player: Cracklepappy Result: Destroyed by AD-0RF with AD-0RF's Magmablaster Performance ------------- Evolutions (1) 500 Regions Visited (6) 1200 Robots Destroyed (87) 435 Value Destroyed (2095) 2095 Prototype IDs (28) 560 Alien Tech Used (0) 0 Bonus (567) 567 TOTAL SCORE: 5357 Bonus ------- High Alert Combat Kills 280 Follower Combat Kills 35 Aligned with FarCom 300 Friendly Fire -48 Cogmind --------- Core Integrity 0/400 Matter 156/300 Energy 244/250 System Corruption 0% Temperature Cool (43) Movement Treading (240) Ox1 Location -8/Mines Parts ------- > --- POWER (1) -------- Ion Engine > --- PROPULSION (3) --- Light Treads Light Treads Light Treads > --- UTILITY (3) ------ Huge Storage Unit Heavy Armor Plating > --- WEAPON (2) ------- Improved Assault Rifle Mini Grenade Launcher > --- INVENTORY (25) --- Nuclear Core Light Treads Aluminum Leg Aluminum Leg Aluminum Leg Carbon-fiber Leg Advanced Myomer Leg Experimental Heat Sink Large Storage Unit Gravity Neutralizer Experimental Sensor Array Experimental Targeting Computer Heavy Armor Plating AS-neutralizer No. 17b Light Assault Rifle Heavy Assault Rifle Heavy Assault Rifle Heavy Assault Rifle Improved Assault Rifle Makeshift Shrapnel Gun 8R-AWN's Boregun Rocket Launcher Peak State ------------ > --- POWER ------------ Ion Engine > --- PROPULSION ------- Light Treads Light Treads Light Treads > --- UTILITY ---------- Huge Storage Unit Heavy Armor Plating > --- WEAPON ----------- Improved Assault Rifle Improved Assault Rifle > --- INVENTORY -------- Nuclear Core Fission Core Fission Core Light Treads Aluminum Leg Aluminum Leg Aluminum Leg Carbon-fiber Leg Advanced Myomer Leg VTOL Module Experimental Heat Sink Gravity Neutralizer Experimental Sensor Array Experimental Targeting Computer Heavy Armor Plating AS-neutralizer No. 17b Light Assault Rifle Heavy Assault Rifle Heavy Assault Rifle Heavy Assault Rifle Makeshift Shrapnel Gun 8R-AWN's Boregun Rocket Launcher Mini Grenade Launcher [Rating: 26] Favorites ----------- Power Improved Ion Engine Engine Improved Ion Engine Power Core Light Nuclear Core Propulsion Light Treads Treads Light Treads Leg Aluminum Leg Wheel Compact Wheel Utility Large Storage Unit Device Heat Sink Storage Large Storage Unit Protection Light Armor Plating Weapon Light Assault Rifle Energy Gun Small Laser Energy Cannon Advanced Beam Cannon Ballistic Gun Light Assault Rifle Launcher Rocket Launcher Special Weapon Mining Laser Build | -11 -10 -10 -9 -9 -9 -8 ------- Run | Jun Mat Min Mat Min Exi Min Slots Evolved 2 | . . . 2 . . . Power . | . . . . . . . Propulsion 1 | . . . 1 . . . Utility 1 | . . . 1 . . . Weapon . | . . . . . . . Parts Attached 77 | 8 17 13 32 1 6 . Power 6 | 1 . 1 3 . 1 . Engine 5 | 1 . 1 2 . 1 . Core 1 | . . . 1 . . . Reactor . | . . . . . . . Propulsion 18 | 2 5 5 5 . 1 . Treads 11 | 2 1 2 5 . 1 . Leg 6 | . 3 3 . . . . Wheel 1 | . 1 . . . . . Hover . | . . . . . . . Flight . | . . . . . . . Utility 17 | 3 5 2 4 1 2 . Device 3 | 2 . . 1 . . . Storage 4 | 1 2 . . 1 . . Processor . | . . . . . . . Hackware . | . . . . . . . Protection 10 | . 3 2 3 . 2 . Artifact . | . . . . . . . Weapon 36 | 2 7 5 20 . 2 . Energy Gun 5 | 1 3 . 1 . . . Energy Cannon 4 | . . . 4 . . . Ballistic Gun 18 | 1 3 4 9 . 1 . Ballistic Cannon . | . . . . . . . Launcher 8 | . . 1 6 . 1 . Special Weapon 1 | . 1 . . . . . Impact Weapon . | . . . . . . . Slashing Weapon . | . . . . . . . Piercing Weapon . | . . . . . . . Special Melee Weapon . | . . . . . . . Unidentified Prototypes 3 | . . . 3 . . . Parts Lost 17 | . 5 5 3 . 4 . Power 3 | . . 1 1 . 1 . Propulsion 5 | . 2 1 1 . 1 . Utility 5 | . 2 1 . . 2 . Weapon 4 | . 1 2 1 . . . Highest Loss Streak 4 | . 2 4 1 . 3 . To Critical Strikes 2 | . . . . . 2 . Average Slot Usage (%) 93 | . 99 98 96 88 88 88 Engine 12 | . 14 13 10 11 11 11 Treads 24 | . 22 3 32 33 33 33 Leg 6 | . 5 23 . . . . Storage 12 | . 14 14 11 11 11 11 Protection 12 | . 12 14 16 11 11 11 Ballistic Gun 22 | . 24 26 16 22 22 11 Naked Turns . | . . . . . . . Heaviest Build 108 | 11 30 32 48 108 108 104 Greatest Support 60 | 40 40 40 60 60 60 60 Greatest Overweight (x) 2 | . 1 2 1 1 1 1 Average Overweight (x) . | . . . . . 1 1 Largest Inventory Capacity 25 | 8 15 15 15 25 25 25 Average Capacity 17 | 7 14 15 15 19 25 25 Most Carried 25 | 8 15 15 15 25 25 25 Average Carried 17 | 6 14 14 14 17 24 24 Final Capacity 25 | 8 15 15 15 25 25 25 Final Carried 25 | 8 15 15 15 25 25 23 Class Distribution -------------------- 57% | Scavenger-Mutant 42% | Mutant Dominant Class ---------------- Mutant | -10/Materials Mutant | -10/Mines Scavenger-Mutant | -9/Materials Scavenger-Mutant | -9/Mines Scavenger-Mutant | -9/Exiles Scavenger-Mutant | -8/Mines Resources | -11 -10 -10 -9 -9 -9 -8 ----------- Run | Jun Mat Min Mat Min Exi Min Matter Collected 1743 | 299 248 243 643 150 160 . Remotely . | . . . . . . . Salvage Created 2965 | 159 895 226 1394 173 118 . Parts 199 | 16 60 9 99 9 6 . Haulers Intercepted 6 | . 2 . 4 . . . Recyclers Shooed 2 | 1 . . 1 . . . Parts Field Recycled . | . . . . . . . Retrieved Matter . | . . . . . . . Parts Self-Destructed . | . . . . . . . Prevented . | . . . . . . . Kills | -11 -10 -10 -9 -9 -9 -8 ------- Run | Jun Mat Min Mat Min Exi Min Combat Hostiles Destroyed 63 | . 18 6 37 1 1 . Guns 36 | . 14 5 15 1 1 . Cannons 3 | . . . 3 . . . AOE 23 | . 3 1 19 . . . Classes Destroyed 12 | 2 5 2 3 . . . Worker 3 | . . . 2 1 . . Builder 7 | . 2 . 4 1 . . Tunneler 5 | 4 1 . . . . . Hauler 6 | . 2 . 4 . . . Recycler 4 | 1 . . 1 2 . . Watcher 1 | . 1 . . . . . Swarmer 13 | . 3 . 10 . . . Grunt 39 | . 15 3 20 1 . . Duelist 1 | . . . 1 . . . Protector 1 | . . . 1 . . . Sentry 6 | . . 1 5 . . . Assembled 2 | . . 2 . . . . Best Kill Streak 15 | 2 8 2 15 1 1 . Combat Bots Only 11 | . 6 2 11 1 1 . Max Kills in Single Turn 4 | 1 3 1 4 1 1 . Gunslinging . | . . . . . . . Exploded 3 | . 2 1 3 . . . Melee . | . . . . . . . Uniques/NPCs Destroyed 1 | . . . . . 1 . 8R-AWN (-9/Exiles) Combat | -11 -10 -10 -9 -9 -9 -8 -------- Run | Jun Mat Min Mat Min Exi Min Damage Taken 3951 | . 915 617 1295 14 1082 28 Core 619 | . 155 62 139 14 235 14 Absorbed by Shields . | . . . . . . . Redirected to Shielding 6 | . . . 6 . . . Core Remaining (%) 56 | 100 . 13 . . . . Volleys Fired 291 | 19 89 36 100 3 44 . Largest 2 | 2 2 2 2 2 2 . Hottest 136 | 60 100 40 136 46 46 . Shots Fired 549 | 38 173 65 179 6 88 . Gun 503 | 38 172 63 136 6 88 . Cannon 26 | . . . 26 . . . Launcher 19 | . . 2 17 . . . Special 1 | . 1 . . . . . Kinetic 444 | 19 132 63 136 6 88 . Thermal 52 | 19 7 . 26 . . . Explosive 19 | . . 2 17 . . . Electromagnetic 34 | . 34 . . . . . Robot Hit Streak 16 | 7 14 11 16 7 16 . Robot Miss Streak 5 | 2 5 5 5 . 2 . Penetration Max . | . . . . . . . Secondary Targets 1 | . 1 . . . . . Max Gunslinging Chain 1 | . 1 . . . . . Shots Hit Robots 371 | 23 111 42 115 4 76 . Core Hits 164 | 7 45 16 81 2 13 . Critical Kills 1 | . 1 . . . . . Critical Parts Destroyed 2 | . 1 . 1 . . . Critical Strikes 3 | . 2 . 1 . . . Destroy 3 | . 2 . 1 . . . Melee Attacks . | . . . . . . . Impact . | . . . . . . . Slashing . | . . . . . . . Piercing . | . . . . . . . Sneak Attacks . | . . . . . . . Combat Hostiles . | . . . . . . . Follow-up Attacks . | . . . . . . . Damage Inflicted 6505 | 217 1287 458 3297 108 1138 . Guns 3879 | 217 1068 373 1025 58 1138 . Cannons 349 | . . . 349 . . . Explosions 2216 | . 208 85 1923 . . . Melee . | . . . . . . . Ramming 61 | . 11 . . 50 . . Kinetic 3396 | 79 723 373 1025 58 1138 . Thermal 891 | 138 231 . 522 . . . Explosive 1799 | . . 85 1714 . . . Electromagnetic 358 | . 322 . 36 . . . Impact . | . . . . . . . Slashing . | . . . . . . . Piercing . | . . . . . . . Highest Corruption . | . . . . . . . Average Corruption . | . . . . . . . Corruption Purged . | . . . . . . . Corruption Blocked . | . . . . . . . Overload Shots . | . . . . . . . Overflow Damage 32 | . 14 . 18 . . . Projectiles 10 | . . . 10 . . . Explosions 22 | . 14 . 8 . . . Melee . | . . . . . . . Knockbacks 1 | . . . . 1 . . Impact 1 | . . . . 1 . . Kinetic . | . . . . . . . Secondary . | . . . . . . . Self-Inflicted Damage 284 | . 147 . 137 . . . Shots 9 | . 4 . 5 . . . Rammed 4 | . 2 . . 2 . . Targets Rammed 8 | . 3 . . 5 . . Kicked 1 | . 1 . . . . . Crushed 3 | . . . . 3 . . Highest Temperature 210 | 60 210 41 198 . . . Average Temperature 29 | 23 37 11 25 . . . Received Heat Transfer 1256 | . 417 295 495 9 . 40 Siege Activations . | . . . . . . . Robots Corrupted 1 | . 1 . . . . . Combat Hostiles 1 | . 1 . . . . . Parts Fried 1 | . 1 . . . . . Impact Corruptions . | . . . . . . . Robots Melted . | . . . . . . . Combat Hostiles . | . . . . . . . Parts Melted 3 | . . . 3 . . . Heat Transferred 1579 | 325 475 . 779 . . . Parts Sabotaged . | . . . . . . . Parts Stolen . | . . . . . . . Parts Stripped . | . . . . . . . Power Chain Reactions 3 | . 3 . . . . . Missiles Intercepted . | . . . . . . . Alert | -11 -10 -10 -9 -9 -9 -8 ------- Run | Jun Mat Min Mat Min Exi Min Peak Influence 999 | 25 384 123 999 389 . . Initial 389 | . 16 106 14 389 . . Average 188 | 10 264 38 364 202 . . Maximum Alert Level 3 | . 1 . 3 1 . . Low Security (%) 54 | 100 18 100 34 43 . 100 Level 1 38 | . 81 . 29 56 . . Level 2 3 | . . . 22 . . . Level 3 2 | . . . 13 . . . Level 4 . | . . . . . . . Level 5 . | . . . . . . . High Security . | . . . . . . . Max Security . | . . . . . . . Squads Dispatched 8 | . 5 . 3 . . . Investigation 3 | . 3 . . . . . Extermination . | . . . . . . . Reinforcement 3 | . 2 . 1 . . . Assault 2 | . . . 2 . . . Garrison . | . . . . . . . Intercept . | . . . . . . . Searches Triggered . | . . . . . . . Construction Impeded . | . . . . . . . Haulers Reinforced . | . . . . . . . Active Scanning Responses . | . . . . . . . Cargo Convoy Interrupts . | . . . . . . . Stealth | -11 -10 -10 -9 -9 -9 -8 --------- Run | Jun Mat Min Mat Min Exi Min Distress Signals 12 | . 5 . 7 . . . Communications Jammed . | . . . . . . . Distress Signals . | . . . . . . . Times Spotted 110 | . 35 8 60 5 1 1 Peak Tracking Total 7 | . 7 2 7 2 3 1 Tactical Retreats 6 | . 3 . 3 . . . Traps | -11 -10 -10 -9 -9 -9 -8 ------- Run | Jun Mat Min Mat Min Exi Min Traps Triggered 1 | . 1 . . . . . Indirectly . | . . . . . . . Trap Hack Attempts . | . . . . . . . Triggered . | . . . . . . . Disarmed . | . . . . . . . Reprogrammed . | . . . . . . . Reused . | . . . . . . . Traps Extracted . | . . . . . . . Installed . | . . . . . . . Triggered . | . . . . . . . Machines | -11 -10 -10 -9 -9 -9 -8 ---------- Run | Jun Mat Min Mat Min Exi Min Machines Disabled 9 | . 2 . 7 . . . Max in Single Turn 2 | . 1 . 2 . . . Machines Repaired . | . . . . . . . Machines Sabotaged . | . . . . . . . Overloaded Fab Kills . | . . . . . . . Hacking | -11 -10 -10 -9 -9 -9 -8 --------- Run | Jun Mat Min Mat Min Exi Min Machines Accessed 12 | . 6 1 3 . 2 . Terminals 7 | . 4 1 2 . . . Fabricators . | . . . . . . . Repair Stations 1 | . . . 1 . . . Recycling Units 2 | . 2 . . . . . Scanalyzers . | . . . . . . . Garrison Access . | . . . . . . . Total Hacks 30 | . 14 2 12 . 2 . Successful 12 | . 6 . 4 . 2 . Failed 18 | . 8 2 8 . . . Catastrophic 3 | . 1 . 2 . . . Database Lockouts . | . . . . . . . Manual 17 | . 10 2 4 . 1 . Terminals 21 | . 10 2 9 . . . Fabricators . | . . . . . . . Repair Stations 3 | . . . 3 . . . Recycling Units 4 | . 4 . . . . . Scanalyzers . | . . . . . . . Garrison Access . | . . . . . . . Terminal Hacks 7 | . 2 . 3 . 2 . Record 1 | . . . . . 1 . Part Schematic 2 | . 2 . . . . . Prototype ID Bank 1 | . . . 1 . . . Branch Access Points 1 | . . . 1 . . . Zone Layout 1 | . . . 1 . . . EX-Prototype ID Bank 1 | . . . . . 1 . Fabricator Hacks . | . . . . . . . Repair Station Hacks 1 | . . . 1 . . . Scan Component 1 | . . . 1 . . . Recycling Unit Hacks 2 | . 2 . . . . . Retrieve Components 2 | . 2 . . . . . Scanalyzer . | . . . . . . . Garrison Access Hacks . | . . . . . . . Unauthorized Hacks 2 | . 2 . . . . . Terminals . | . . . . . . . Fabricators . | . . . . . . . Repair Stations . | . . . . . . . Recycling Units 2 | . 2 . . . . . Tunnel 2 | . 2 . . . . . Scanalyzers . | . . . . . . . Garrison Access . | . . . . . . . Data Cores Recovered . | . . . . . . . Used . | . . . . . . . Hacking Detections 10 | . 6 1 3 . . . Full Trace Events . | . . . . . . . Feedback Events . | . . . . . . . Feedback Blocked . | . . . . . . . Robot Schematics Acquired . | . . . . . . . Robots Built . | . . . . . . . Authchips . | . . . . . . . Time . | . . . . . . . Total Robot Build Rating . | . . . . . . . Part Schematics Acquired 2 | . 2 . . . . . Parts Built . | . . . . . . . Authchips . | . . . . . . . Time . | . . . . . . . Total Part Build Rating . | . . . . . . . Parts Repaired . | . . . . . . . Time . | . . . . . . . Parts Recycled . | . . . . . . . Recycled Matter . | . . . . . . . Retrieved Matter . | . . . . . . . Retrieved Components 11 | . 11 . . . . . Parts Scanalyzed . | . . . . . . . Part Schematics Acquired . | . . . . . . . Parts Damaged . | . . . . . . . Bothacking | -11 -10 -10 -9 -9 -9 -8 ------------ Run | Jun Mat Min Mat Min Exi Min Used RIF Installer . | . . . . . . . Robots Hacked . | . . . . . . . Non-combat . | . . . . . . . Combat . | . . . . . . . Robot Hacks Applied . | . . . . . . . Relay Couplers Released . | . . . . . . . Fabnet Peak Effective % . | . . . . . . . Robots Rewired . | . . . . . . . Allies Hacked . | . . . . . . . Hacks Repelled . | . . . . . . . Allies | -11 -10 -10 -9 -9 -9 -8 -------- Run | Jun Mat Min Mat Min Exi Min Total Allies 1 | . . . . 1 . . Largest Group 1 | . . . . 1 . . Highest-Rated Group 31 | . . . . 31 . . Highest-Rated Ally 31 | . . . . 31 . . Total Orders . | . . . . . . . Ally Attacks 2 | . . . . 2 . . Total Damage 40 | . . . . 40 . . Kills 1 | . . . . 1 . . Allies Corrupted . | . . . . . . . Allies Melted . | . . . . . . . Intel | -11 -10 -10 -9 -9 -9 -8 ------- Run | Jun Mat Min Mat Min Exi Min Robot Analysis Total . | . . . . . . . Derelict Logs Recovered 1 | . . . . 1 . . Drone Launches . | . . . . . . . Drone Recoveries . | . . . . . . . Exploration | -11 -10 -10 -9 -9 -9 -8 ------------- Run | Jun Mat Min Mat Min Exi Min Turns Passed 7251 | 287 1394 1596 971 1371 1599 33 Spaces Moved 2999 | 135 644 554 352 697 603 14 Core 3 | 3 . . . . . . Treads 2422 | 132 503 121 352 697 603 14 Legs 569 | . 136 433 . . . . Wheels 5 | . 5 . . . . . Hover . | . . . . . . . Flight . | . . . . . . . Fastest Speed 50 | 50 115 160 160 160 240 240 Average Speed 189 | 157 165 186 160 190 240 240 Slowest Speed 260 | 160 190 260 240 240 240 240 Overloaded Moves . | . . . . . . . Propulsion Burnouts . | . . . . . . . Robots Hopped . | . . . . . . . Cave-ins Triggered . | . . . . . . . Exploration Rate (%) 59 | 8 95 93 43 99 70 8 Regions Visited 6 Branch Regions 4 Pre-discovered Areas 5 | . 2 . . 2 1 . Known Exits Taken 1 | . . . 1 . . . Unknown Exits Taken 5 | 1 1 1 . 1 1 . Scrap Searched 3 | . . 1 . 2 . . Spaces Dug 24 | . 1 . 23 . . . Terrain Destroyed 165 | . 6 21 138 . . . Melee . | . . . . . . . Projectile 1 | . 1 . . . . . AOE 164 | . 5 21 138 . . . Terrain Rammed . | . . . . . . . Walls Destroyed . | . . . . . . . Machines Disabled . | . . . . . . . Actions | -11 -10 -10 -9 -9 -9 -8 --------- Run | Jun Mat Min Mat Min Exi Min Total 4075 | 175 825 1060 595 734 670 16 Wait 545 | . 28 444 63 10 . . Move 2993 | 134 643 553 351 696 602 14 Hop . | . . . . . . . Pick Up 91 | 11 26 7 21 14 12 . Fast Attach 17 | 7 2 4 4 . . . Attach 21 | 1 5 4 7 . 4 . Detach 2 | . 1 . 1 . . . Swap 39 | . 10 5 21 1 2 . Drop 68 | 3 18 7 27 5 6 2 Fire 291 | 19 89 36 100 3 44 . Melee . | . . . . . . . Ram . | . . . . . . . Kick 1 | . 1 . . . . . Crush 7 | . 2 . . 5 . . Escape Stasis . | . . . . . . . Rewire . | . . . . . . . Trap . | . . . . . . . Miscellaneous . | . . . . . . . Route ------- -11/Junkyard -10/Materials (discovered 5 exits: *Mat x3 / *Min x2) -10/Mines (discovered 2 exits: *Mat x2) -9/Materials (discovered 2 exits: *Min x2) -9/Mines (discovered 3 exits: [*Mat x2] / *Exi) -9/Exiles -8/Mines (discovered 1 exit: [*Mat]) History --------- Turn | Location | Event 2 | -11/Junkyard | Met Revision 17 14 | -11/Junkyard | Discovered new exit (range 15) 288 | -11/Junkyard | Entered Materials 317 | -10/Materials | Build established: Mutant 498 | -10/Materials | Discovered new exit (range 15) 558 | -10/Materials | Discovered new exit (range 10) 723 | -10/Materials | Discovered new exit (range 11) 1103 | -10/Materials | Core integrity fell below 50% 1119 | -10/Materials | Discovered new exit (range 16) 1244 | -10/Materials | Discovered new exit (range 16) 1682 | -10/Materials | Entered Mines 1694 | -10/Mines | Discovered new exit (range 16) 1705 | -10/Mines | Received a Rocket Launcher from a helpful Derelict 1723 | -10/Mines | Assembled infested the area 2379 | -10/Mines | Core integrity fell below 20% 2411 | -10/Mines | Lost 4 parts (1p1u2w) 2579 | -10/Mines | Discovered new exit (range 15) 3278 | -10/Mines | Entered Materials 3278 | -9/Materials | Evolved 2 slots: Propulsion x1, Utility x1 3381 | -9/Materials | Build established: Scavenger-Mutant 3867 | -9/Materials | Discovered new exit (range 14) 3883 | -9/Materials | Identified exit to Mines 4078 | -9/Materials | First assault squad dispatched 4164 | -9/Materials | Destroyed 11 combat bots 4249 | -9/Materials | Entered Mines 4365 | -9/Mines | Found a hidden stash of uninstalled traps 4398 | -9/Mines | Deemed a non-threat by the Exiles lab entrance 4512 | -9/Mines | Discovered new exit (range 15) 4526 | -9/Mines | Found a damaged Exp. Sensor Array with a note attached 4530 | -9/Mines | Found Prototype Device 4571 | -9/Mines | Discovered new exit (range 10) 4596 | -9/Mines | Escorted by a lone wolf Derelict 4616 | -9/Mines | Learned location of Storage (-7) 4776 | -9/Mines | A weapon hastily lodged in a ceiling crevice suddenly fell to the ground 4846 | -9/Mines | Learned location of Recycling (-7) 5611 | -9/Mines | Discovered new exit (range 5) 5620 | -9/Mines | Entered Exiles 5678 | -9/Exiles | Met 8R-AWN 5721 | -9/Exiles | Met EX-HEX 5832 | -9/Exiles | Met EX-DEC 5968 | -9/Exiles | Discovered new exit (range 10) 6080 | -9/Exiles | Learned location of Zion (-6) 6403 | -9/Exiles | Met EX-BIN 6715 | -9/Exiles | Aligned with FarCom system 6718 | -9/Exiles | Given EX-Vault access code 6782 | -9/Exiles | Opened EX-Vault 6879 | -9/Exiles | Exiles lab attacked by MAIN.C 7052 | -9/Exiles | Attacked by the Exiles 7083 | -9/Exiles | Core integrity fell below 50% 7127 | -9/Exiles | Core integrity fell below 20% 7182 | -9/Exiles | Lost 3 parts (1p1n1u) 7185 | -9/Exiles | Destroyed 8R-AWN 7193 | -9/Exiles | Found Prototype Device 7197 | -9/Exiles | Found Prototype Ballistic Gun 7207 | -9/Exiles | Found Prototype Processor 7219 | -9/Exiles | Entered Mines 7241 | -8/Mines | Discovered new exit (range 9) 7243 | -8/Mines | AD-0RF came to Exiles' defense 7252 | -8/Mines | Destroyed by AD-0RF with AD-0RF's Magmablaster Last Messages --------------- 07190_ Acquired Prototype Device. 07197_ Acquired Prototype Ballistic Gun. 07200_ Acquired Prototype Device. 07204_ Acquired Prototype Leg. 07207_ Acquired Prototype Processor. 07210_ Acquired Prototype Device. 07214_ Dropped VTOL Module. 07214_ Acquired Lrg. Storage Unit. A strange signal echoes through the mines. LOCATION=UNKNOWN GOAL=ESCAPE 07237_ K-01 Serf collects debris. 07241_ EXIT=FOUND 07242_ K-01 Serf collects debris. 07243_ AD-0RF: "I came as fast as I could... Wait, it was you!" 07245_ K-01 Serf collects debris. 07246_ Dropped Rigged Fission Core. 07248_ K-01 Serf collects debris. 07249_ K-01 Serf destroyed. 07251_ Dropped Rigged Fission Core. Map ----- +----------------------------------------------------+ | | | | | | | | | | | | | | | | | | | | | | | | | | | | | ????????????????????????????????????????? | | ????????????????????????????????????????? | | ???????????????????????????######???????? | | ??????????????????????????## ##??????? | | ??????????????????####????# ##?????? | | ??????????????????# #??## ##????? | | ??????????????????# ### #????? | | ???????????????????# #????? | | ???????????????????# ##????? | | ???????????????????# ## ##?????? | | ???????????????????##### #######??????? | | ???????????????????????##@t##???????????? | | ????????????????????????#* ##??##??????? | | ????????????????????????# ## #??????? | | ????????????????????????## k #??????? | | ?????????????????????????# #??????? | | ????????????????????< i #####??????? | | ????????????????# #### ##??????????? | | ????????????????# ???????# ???????????? | | ?????????????????????????# ???????????? | | ?????????????????????????#####??????????? | | ????????????????????????????????????????? | | ????????????????????????????????????????? | | ????????????????????????????????????????? | | ????????????????????????????????????????? | | ????????????????????????????????????????? | | ????????????????????????????????????????? | | ????????????????????????????????????????? | | ????????????????????????????????????????? | | ????????????????????????????????????????? | | ????????????????????????????????????????? | | ????????????????????????????????????????? | | ????????????????????????????????????????? | | ????????????????????????????????????????? | | ????????????????????????????????????????? | | ????????????????????????????????????????? | +----------------------------------------------------+ Best States ------------- Heat Dissipation 38 Energy Generation 14 Energy Capacity 265 Matter Stores 300 Matter Capacity 300 Sight Range 16 Terrain Scan Range 16 Terrain Scan Density 10 Armor Coverage 600 Core Shielding 20 Evasion (%) 40 Recoil Reduction 3 Item Schematics ----------------- Huge Storage Unit | -10/Materials | Hacked Med. Storage Unit | -10/Materials | Hacked Robot Schematics ------------------ None Fabricated ------------ Nothing Alien Tech Used ----------------- None Achievements -------------- None Challenges ------------ None Game ------ Seed GhostIonicInverter Manual? 0 Play Time 00:39:18 Cumulative 391.9 hours Start 2023.03.04 @ 21:59:55 End 2023.03.04 @ 22:42:47 Sessions 1 Manual Loads 0 Difficulty Rogue Special Mode None Game No. 339 Rogue 339 Adventurer 0 Explorer 0 Win Type - Total 6 Types 4/1/0/0/0/0/1/0/0 Lore% 74 Gallery% 86 Achievement% 71 Wizard Run 0 Options --------- ASCII 0 Keyboard 0 Movement Numpad Keybinds 0 Fullscreen 2 Font 24/Terminus Map View 76x50 Tactical HUD 1 Map Filters NONE Filters NONE Steam 1 RUN: ad21fc7f-e081-43d0-8854-d80c4c153ef4